fUST/lending_fUST_20241114
["ID","MTS","AMOUNT","RATE_DAILY","PERIOD"]
[342212820,1731586239224,-601.98,0.00019178,2]
[342212821,1731586239235,-500.0,0.00019178,2]
[342212822,1731586239247,-500.0,0.00019178,2]
[342212823,1731586239258,-1195.28,0.00019178,2]
[342212824,1731586239268,-500.0,0.00019178,2]
[342212825,1731586239278,-701.56,0.00019178,2]
[342212826,1731586239290,-500.0,0.00019178,2]
[342212827,1731586239303,-500.0,0.00019178,2]
[342212828,1731586239316,-533.14,0.00019178,2]
[342212829,1731586239328,-520.60311199,0.00019178,2]
[342212830,1731586239338,-500.0,0.00019178,2]
[342212831,1731586239348,-500.0,0.00019178,2]
[342212832,1731586239360,-500.0,0.00019178,2]
[342212833,1731586239371,-500.0,0.00019178,2]
[342212834,1731586239383,-437.09349085,0.00019178,2]
[342212835,1731586239398,-62.90650915,0.00019178,2]
[342212836,1731586239408,-151.0,0.00019178,2]
[342212837,1731586239419,-500.0,0.00019178,2]
[342212838,1731586239430,-151.113437,0.00019178,2]
[342212839,1731586239441,-40.07511388,0.00019178,2]
[342212875,1731586243792,-567.51488612,0.00019178,2]
[342212876,1731586243802,-500.0,0.00019178,2]
[342212877,1731586243811,-500.0,0.00019178,2]
[342212878,1731586243821,-500.0,0.00019178,2]
[342212879,1731586243831,-94.38511408,0.00019178,2]
[342212880,1731586243843,-380.41308156,0.00019178,2]
[342212881,1731586243852,-578.54869807,0.00019178,2]
[342212882,1731586243861,-500.0,0.00019178,2]
[342212883,1731586243870,-500.0,0.00019178,2]
[342212884,1731586243879,-152.618325,0.00019178,2]
[342212885,1731586243888,-522.32367393,0.00019178,2]
[342212886,1731586243897,-500.0,0.00019178,2]
[342212887,1731586243907,-500.0,0.00019178,2]
[342212888,1731586243916,-500.0,0.00019178,2]
[342212889,1731586243925,-500.0,0.00019178,2]
[342212890,1731586243938,-125.09657839,0.00019178,2]
[342212891,1731586243952,-374.90342161,0.00019178,2]
[342212892,1731586243962,-500.0,0.00019178,2]
[342212893,1731586243972,-109.64241199,0.00019178,2]
[342212926,1731586246689,-151.0,0.00019178,2]
[342212927,1731586246699,-151.0,0.00019178,2]
[342212928,1731586246708,-151.0,0.00019178,2]
[342212929,1731586246718,-512.04136664,0.00019178,2]
[342212930,1731586246729,-500.0,0.00019178,2]
[342212931,1731586246739,-151.0,0.00019178,2]
[342212932,1731586246748,-151.0,0.00019178,2]
[342212933,1731586246758,-151.0,0.00019178,2]
[342212934,1731586246767,-151.0,0.00019178,2]
[342212935,1731586246777,-500.0,0.00019178,2]
[342212936,1731586246786,-151.0,0.00019178,2]
[342212937,1731586246796,-151.0,0.00019178,2]
[342212938,1731586246805,-151.0,0.00019178,2]
[342212939,1731586246815,-151.0,0.00019178,2]
[342212940,1731586246824,-151.0,0.00019178,2]
[342212941,1731586246834,-151.0,0.00019178,2]
[342212942,1731586246843,-151.0,0.00019178,2]
[342212943,1731586246853,-155.23896,0.00019178,2]
[342212944,1731586246863,-500.0,0.00019178,2]
[342212945,1731586246872,-500.0,0.00019178,2]
[342212946,1731586246881,-500.0,0.00019178,2]
[342212947,1731586246891,-512.9196487,0.00019178,2]
[342212948,1731586246900,-500.0,0.00019178,2]
[342212949,1731586246909,-500.0,0.00019178,2]
[342212950,1731586246919,-500.0,0.00019178,2]
[342212951,1731586246929,-500.0,0.00019178,2]
[342212952,1731586246939,-500.0,0.00019178,2]
[342212953,1731586246949,-500.0,0.00019178,2]
[342212954,1731586246958,-585.75,0.00019178,2]
[342212955,1731586246967,-108.38611188,0.00019178,2]
[342212956,1731586294858,374.0,0.00027,60]
[342212957,1731586349839,687.0,0.00027,60]
[342212965,1731586763182,500.0,0.00027,60]
[342212966,1731586770844,500.0,0.00027,60]
[342212967,1731586777649,500.0,0.00027,60]
[342212968,1731586786564,500.0,0.00027,60]
[342212971,1731586801303,500.0,0.00027,60]
[342212972,1731586808759,500.0,0.00027,60]
[342212973,1731586815229,500.0,0.00027,60]
[342212974,1731586822406,500.0,0.00027,60]
[342212975,1731586829223,500.0,0.00027,60]
[342212976,1731586831044,462.0014888,0.00027,60]
[342212977,1731586844937,500.0,0.00027,60]
[342212978,1731586860138,500.0,0.00027,60]
[342212979,1731586867495,500.0,0.00027,60]
[342212980,1731586874319,500.0,0.00027,60]
[342212981,1731586892212,500.0,0.00027,60]
[342212982,1731586901910,500.0,0.00027,60]
[342212983,1731586911362,500.0,0.00027,60]
[342213099,1731586930148,297.181443,0.00027,60]
[342215736,1731587437898,-482.11768269,0.00013873,2]
[342215738,1731587437912,-397.587021,0.00013973,2]
[342215740,1731587437921,-1184.0848271,0.00016751,2]
[342215742,1731587437931,-24636.883157,0.0001749,2]
[342215743,1731587437940,-169.80245,0.00017622,2]
[342215746,1731587437950,-671.7651842,0.00017715,2]
[342215748,1731587437959,-248.6613948,0.0001777,2]
[342215749,1731587437969,-300.0,0.00018175,2]
[342215752,1731587437978,-300.0,0.00018175,2]
[342215754,1731587437988,-169.80245,0.00018991,2]
[342215756,1731587437997,-757.75260406,0.00019023,3]
[342215782,1731587442943,-442.71028171,0.00019023,3]
[342215783,1731587443001,-1382.28668592,0.00019023,3]
[342215784,1731587443011,-273.70814806,0.00019078,2]
[342215785,1731587443020,-76.68296605,0.00019173,2]
[342215804,1731587445797,-423.31703395,0.00019173,2]
[342215805,1731587445807,-500.0,0.00019173,2]
[342215806,1731587445816,-500.0,0.00019173,2]
[342215807,1731587445825,-531.32210403,0.00019177,2]
[342215808,1731587445834,-28.84086202,0.00019177,2]
[342215810,1731587512595,701.34481986,0.00027,60]
[342215819,1731588168365,409.6843667,0.00027,60]
[342215880,1731588634329,-400.0,0.00013973,2]
[342215881,1731588634338,-691.74241901,0.00016488,2]
[342215894,1731588638196,-983.4695385,0.00016488,2]
[342215895,1731588638272,-1198.52676599,0.00016488,2]
[342215896,1731588638282,-199.1968542,0.00017384,2]
[342215897,1731588638291,-218.96651844,0.00017387,2]
[342215898,1731588638301,-418.98846783,0.00017473,2]
[342215899,1731588638311,-500.0,0.00017473,2]
[342215900,1731588638320,-500.0,0.00017473,2]
[342215901,1731588638330,-300.0,0.00017484,2]
[342215902,1731588638340,-300.0,0.00017484,2]
[342215903,1731588638350,-1544.72,0.00017485,2]
[342215904,1731588638359,-500.0,0.00017485,2]
[342215905,1731588638369,-896.03,0.00017485,2]
[342215906,1731588638378,-2469.66,0.00017485,2]
[342215907,1731588638388,-188.75186255,0.00017485,2]
[342215913,1731588642021,-500.0,0.00017484,2]
[342215914,1731588642032,-311.24813745,0.00017485,2]
[342215915,1731588642042,-1675.19,0.00017485,2]
[342215916,1731588642051,-128.75186255,0.00017485,2]
[342215938,1731588645922,-679.42813745,0.00017485,2]
[342215939,1731588645933,-719.99,0.00017485,2]
[342215940,1731588645943,-2960.43096255,0.00017485,2]
[342215941,1731588645956,-6400.45903745,0.00017485,2]
[342215942,1731588645965,-500.0,0.00017485,2]
[342215943,1731588645975,-989.34,0.00017485,2]
[342215944,1731588645984,-500.0,0.00017485,2]
[342215945,1731588645994,-379.86850077,0.00017485,2]
[342215946,1731588646003,-500.0,0.00017485,2]
[342215947,1731588646012,-500.0,0.00017485,2]
[342215948,1731588646021,-500.0,0.00017485,2]
[342215949,1731588646031,-500.0,0.00017485,2]
[342215950,1731588646040,-500.75981233,0.00017485,2]
[342215951,1731588646049,-500.0,0.00017485,2]
[342215952,1731588646059,-500.0,0.00017485,2]
[342215953,1731588646068,-500.0,0.00017485,2]
[342215954,1731588646077,-520.63947016,0.00017485,2]
[342215955,1731588646086,-2.66489244,0.00017485,2]
[342215956,1731588646097,-497.33510756,0.00017485,2]
[342215957,1731588646107,-500.0,0.00017485,2]
[342215958,1731588646115,-500.0,0.00017485,2]
[342215960,1731588646124,-500.0,0.00017485,2]
[342215962,1731588646134,-500.0,0.00017485,2]
[342215964,1731588646144,-500.0,0.00017485,2]
[342215965,1731588646156,-466.66763837,0.00017485,2]
[342215966,1731588646166,-500.0,0.00017485,2]
[342215967,1731588646175,-500.0,0.00017485,2]
[342215968,1731588646184,-500.0,0.00017485,2]
[342215969,1731588646194,-651.78769361,0.00017485,2]
[342215970,1731588646204,-500.0,0.00017485,2]
[342215971,1731588646213,-500.0,0.00017485,2]
[342215972,1731588646222,-500.0,0.00017485,2]
[342215973,1731588646231,-500.0,0.00017485,2]
[342215974,1731588646239,-500.0,0.00017485,2]
[342215975,1731588646249,-500.0,0.00017485,2]
[342215976,1731588646257,-500.0,0.00017485,2]
[342215977,1731588646266,-472.52207787,0.00017485,2]
[342215978,1731588646275,-500.0,0.00017485,2]
[342215979,1731588646284,-500.0,0.00017485,2]
[342215980,1731588646293,-500.0,0.00017485,2]
[342215981,1731588646302,-500.0,0.00017485,2]
[342215982,1731588646311,-500.0,0.00017485,2]
[342215983,1731588646320,-284.42974481,0.00017485,2]
[342215984,1731588646329,-500.0,0.00017485,2]
[342215985,1731588646338,-500.0,0.00017485,2]
[342215986,1731588646347,-500.0,0.00017485,2]
[342215987,1731588646356,-500.0,0.00017485,2]
[342215988,1731588646365,-500.0,0.00017485,2]
[342215989,1731588646375,-17898.53,0.00017485,2]
[342215990,1731588646384,-612.88653623,0.00017486,2]
[342215991,1731588646393,-500.0,0.00017486,2]
[342215992,1731588646405,-500.0,0.00017486,2]
[342215993,1731588646419,-500.0,0.00017486,2]
[342215994,1731588646428,-200.0,0.00017486,2]
[342215995,1731588646437,-500.0,0.00017486,2]
[342215996,1731588646446,-500.0,0.00017486,2]
[342215997,1731588646455,-500.0,0.00017486,2]
[342215998,1731588646464,-521.89410803,0.00017486,2]
[342215999,1731588646473,-500.0,0.00017486,2]
[342216000,1731588646482,-500.0,0.00017486,2]
[342216001,1731588646491,-683.07,0.00017486,2]
[342216002,1731588646500,-1654.39,0.00017486,2]
[342216003,1731588646509,-649.41,0.00017486,2]
[342216004,1731588646519,-450.0,0.00017486,2]
[342216005,1731588646528,-511.27885708,0.00017486,2]
[342216006,1731588646537,-500.0,0.00017486,2]
[342216007,1731588646546,-500.0,0.00017486,2]
[342216008,1731588646554,-219.82400758,0.00017486,2]
[342216009,1731588646563,-500.0,0.00017486,2]
[342216010,1731588646572,-500.0,0.00017486,2]
[342216011,1731588646583,-500.0,0.00017486,2]
[342216012,1731588646592,-572.48985408,0.00017486,2]
[342216013,1731588646601,-500.0,0.00017486,2]
[342216014,1731588646610,-502.72105777,0.00017486,2]
[342216015,1731588646619,-500.0,0.00017486,2]
[342216016,1731588646629,-500.0,0.00017486,2]
[342216017,1731588646638,-602.95126911,0.00017486,2]
[342216018,1731588646649,-500.0,0.00017486,2]
[342216019,1731588646658,-500.0,0.00017486,2]
[342216020,1731588646667,-500.0,0.00017486,2]
[342216021,1731588646676,-500.0,0.00017486,2]
[342216022,1731588646685,-918.43,0.00017486,2]
[342216023,1731588646694,-2023.25,0.00017486,2]
[342216024,1731588646704,-500.0,0.00017486,2]
[342216025,1731588646714,-1274.97,0.00017486,2]
[342216026,1731588646724,-500.0,0.00017486,2]
[342216027,1731588646733,-586.47,0.00017486,2]
[342216028,1731588646742,-500.0,0.00017486,2]
[342216029,1731588646919,-500.33080116,0.00017486,2]
[342216030,1731588646929,-500.0,0.00017486,2]
[342216031,1731588646939,-798.06,0.00017486,2]
[342216032,1731588646948,-505.66860195,0.00017486,2]
[342216033,1731588646957,-500.0,0.00017486,2]
[342216034,1731588646967,-533.54,0.00017486,2]
[342216035,1731588646976,-500.0,0.00017486,2]
[342216036,1731588646986,-335.60267093,0.00017486,2]
[342216037,1731588646995,-500.0,0.00017486,2]
[342216038,1731588647005,-513.16616186,0.00017486,2]
[342216039,1731588647015,-862.84,0.00017486,2]
[342216040,1731588647025,-464.76162965,0.00017486,2]
[342216041,1731588647034,-500.0,0.00017486,2]
[342216042,1731588647043,-500.0,0.00017486,2]
[342216043,1731588647052,-500.0,0.00017486,2]
[342216044,1731588647061,-500.0,0.00017486,2]
[342216045,1731588647070,-450.44112456,0.00017486,2]
[342216046,1731588647079,-564.59,0.00017486,2]
[342216047,1731588647089,-524.46231481,0.00017486,2]
[342216048,1731588647099,-500.0,0.00017486,2]
[342216049,1731588647110,-599.92,0.00017486,2]
[342216050,1731588647119,-532.21448907,0.00017486,2]
[342216051,1731588647128,-500.0,0.00017486,2]
[342216052,1731588647137,-500.0,0.00017486,2]
[342216053,1731588647146,-500.0,0.00017486,2]
[342216054,1731588647156,-4193.88,0.00017486,2]
[342216055,1731588647166,-500.0,0.00017486,2]
[342216056,1731588647176,-500.0,0.00017486,2]
[342216057,1731588647185,-614.65,0.00017486,2]
[342216058,1731588647194,-500.0,0.00017486,2]
[342216059,1731588647204,-740.57,0.00017486,2]
[342216060,1731588647213,-500.0,0.00017486,2]
[342216061,1731588647223,-500.0,0.00017486,2]
[342216062,1731588647232,-185.69447349,0.00017486,2]
[342216063,1731588647242,-500.0,0.00017486,2]
[342216064,1731588647251,-500.0,0.00017486,2]
[342216065,1731588647260,-500.0,0.00017486,2]
[342216066,1731588647269,-500.0,0.00017486,2]
[342216067,1731588647278,-652.26,0.00017486,2]
[342216068,1731588647288,-500.0,0.00017486,2]
[342216069,1731588647298,-500.0,0.00017486,2]
[342216070,1731588647308,-501.3368887,0.00017486,2]
[342216071,1731588647317,-500.0,0.00017486,2]
[342216072,1731588647327,-500.0,0.00017486,2]
[342216073,1731588647336,-751.95,0.00017486,2]
[342216074,1731588647345,-500.0,0.00017486,2]
[342216075,1731588647355,-500.0,0.00017486,2]
[342216076,1731588647364,-900.44,0.00017486,2]
[342216077,1731588647374,-14907.39,0.00017486,2]
[342216078,1731588647383,-500.0,0.00017486,2]
[342216079,1731588647392,-121.33787044,0.00017486,2]
[342216081,1731588857362,1000.0,0.00027,60]
[342216082,1731588903321,1000.0,0.00027,60]
[342216083,1731588936761,600.0,0.00027,60]
[342216084,1731589449700,151.0,0.00027,60]
[342216141,1731589832314,-400.0,0.00013973,2]
[342216142,1731589832324,-1984.91,0.00016463,2]
[342216148,1731589838179,-1739.271922,0.00016463,2]
[342216149,1731589838189,-4938.76064469,0.00017072,2]
[342216150,1731589838198,-269.38135126,0.00017383,2]
[342216151,1731589838210,-300.0,0.00017471,2]
[342216152,1731589838219,-300.0,0.00017472,2]
[342216153,1731589838228,-199.62686539,0.00017473,2]
[342216154,1731589838238,-541.16999734,0.00017473,2]
[342216155,1731589838247,-411.78921932,0.00017473,2]
[342216190,1731589840085,-88.21078068,0.00017473,2]
[342216191,1731589840095,-502.64882529,0.00017473,2]
[342216192,1731589840106,-8.61758706,0.00017473,2]
[342216220,1731589843251,-491.38241294,0.00017473,2]
[342216221,1731589843260,-18.88591536,0.00017473,2]
[342216222,1731589846217,-481.11408464,0.00017473,2]
[342216223,1731589846227,-500.0,0.00017473,2]
[342216224,1731589846236,-500.0,0.00017473,2]
[342216225,1731589846246,-500.0,0.00017473,2]
[342216226,1731589846255,-500.0,0.00017473,2]
[342216227,1731589846265,-564.50305121,0.00017473,2]
[342216228,1731589846274,-349.55908742,0.00017473,2]
[342216229,1731589846283,-500.0,0.00017473,2]
[342216230,1731589846293,-160.58836082,0.00017473,2]
[342216231,1731589846303,-500.0,0.00017473,2]
[342216232,1731589846313,-500.0,0.00017473,2]
[342216233,1731589846323,-500.0,0.0001748,2]
[342216234,1731589846332,-3441.49,0.0001748,2]
[342216235,1731589846342,-500.0,0.0001748,2]
[342216236,1731589846351,-2688.07,0.0001748,2]
[342216237,1731589846362,-879.53,0.0001748,2]
[342216238,1731589846371,-500.0,0.0001748,2]
[342216239,1731589846380,-1685.68,0.0001748,2]
[342216240,1731589846389,-795.34,0.0001748,2]
[342216241,1731589846399,-715.56,0.0001748,2]
[342216242,1731589846408,-8970.85,0.0001748,2]
[342216244,1731589846417,-500.0,0.0001748,2]
[342216245,1731589846426,-500.0,0.0001748,2]
[342216247,1731589846436,-989.03,0.0001748,2]
[342216249,1731589846445,-500.0,0.0001748,2]
[342216250,1731589846455,-500.0,0.0001748,2]
[342216252,1731589846464,-500.0,0.0001748,2]
[342216254,1731589846473,-500.0,0.0001748,2]
[342216255,1731589846484,-508.64169501,0.0001748,2]
[342216257,1731589846493,-504.8287137,0.0001748,2]
[342216258,1731589846502,-17333.83,0.0001748,2]
[342216259,1731589846512,-500.0,0.0001748,2]
[342216260,1731589846521,-581.03889096,0.00017481,2]
[342216261,1731589846531,-601.15369467,0.00017481,2]
[342216262,1731589846540,-500.0,0.00017481,2]
[342216263,1731589846697,-500.0,0.00017481,2]
[342216264,1731589846708,-500.0,0.00017481,2]
[342216265,1731589846717,-500.0,0.00017481,2]
[342216266,1731589846726,-500.0,0.00017481,2]
[342216267,1731589846736,-503.09023533,0.00017481,2]
[342216268,1731589846746,-1648.43,0.00017481,2]
[342216269,1731589846756,-915.9,0.00017481,2]
[342216270,1731589846765,-582.86,0.00017481,2]
[342216271,1731589846775,-611.57841997,0.00017481,2]
[342216272,1731589846785,-500.0,0.00017481,2]
[342216273,1731589846794,-1374.22,0.00017481,2]
[342216274,1731589846804,-1277.16,0.00017481,2]
[342216275,1731589846813,-500.0,0.00017481,2]
[342216276,1731589846822,-785.64,0.00017481,2]
[342216277,1731589846832,-730.54,0.00017481,2]
[342216278,1731589846841,-500.0,0.00017481,2]
[342216279,1731589846850,-857.96,0.00017481,2]
[342216280,1731589846860,-500.0,0.00017481,2]
[342216281,1731589846869,-500.0,0.00017481,2]
[342216282,1731589846878,-500.0,0.00017481,2]
[342216283,1731589846887,-500.0,0.00017481,2]
[342216284,1731589846896,-4506.3,0.00017481,2]
[342216285,1731589846905,-500.0,0.00017481,2]
[342216286,1731589846915,-883.75,0.00017481,2]
[342216287,1731589846924,-500.0,0.00017481,2]
[342216288,1731589846933,-500.0,0.00017481,2]
[342216289,1731589846942,-645.92,0.00017481,2]
[342216290,1731589846951,-4303.95,0.00017481,2]
[342216291,1731589846961,-626.31,0.00017481,2]
[342216292,1731589846970,-14478.43,0.00017481,2]
[342216293,1731589846979,-1474.2,0.00017481,2]
[342216294,1731589846989,-500.0,0.00017481,2]
[342216295,1731589846999,-500.0,0.00017481,2]
[342216296,1731589847008,-183.53196596,0.00017481,2]
[342216297,1731589847018,-274.72467532,0.00017481,2]
[342216298,1731589847027,-500.0,0.00017481,2]
[342216299,1731589847038,-253.8255272,0.00017481,2]
[342216300,1731589847048,-454.49015003,0.00017481,2]
[342216301,1731589847057,-510.38290786,0.00017481,2]
[342216302,1731589847066,-500.0,0.00017482,2]
[342216303,1731589847076,-500.0,0.00017482,2]
[342216304,1731589847085,-500.0,0.00017482,2]
[342216305,1731589847094,-603.01,0.00017482,2]
[342216306,1731589847104,-500.0,0.00017482,2]
[342216307,1731589847114,-500.0,0.00017482,2]
[342216308,1731589847123,-500.0,0.00017482,2]
[342216309,1731589847137,-500.0,0.00017482,2]
[342216310,1731589847146,-617.94,0.00017482,2]
[342216311,1731589847156,-611.67,0.00017482,2]
[342216312,1731589847165,-500.0,0.00017482,2]
[342216313,1731589847176,-500.0,0.00017482,2]
[342216314,1731589847186,-500.0,0.00017482,2]
[342216315,1731589847195,-503.07934457,0.00017482,2]
[342216316,1731589847205,-501.54746863,0.00017482,2]
[342216317,1731589847214,-675.44,0.00017482,2]
[342216318,1731589847224,-500.0,0.00017482,2]
[342216319,1731589847234,-502.97165107,0.00017482,2]
[342216320,1731589847243,-500.0,0.00017482,2]
[342216321,1731589847256,-500.0,0.00017482,2]
[342216322,1731589847265,-647.51,0.00017482,2]
[342216323,1731589847274,-200.0,0.00017482,2]
[342216324,1731589847283,-500.0,0.00017482,2]
[342216325,1731589847292,-529.01742182,0.00017482,2]
[342216326,1731589847302,-500.0,0.00017482,2]
[342216327,1731589847311,-546.04,0.00017482,2]
[342216328,1731589847320,-500.0,0.00017482,2]
[342216329,1731589847329,-500.0,0.00017482,2]
[342216330,1731589847338,-500.0,0.00017482,2]
[342216331,1731589847347,-500.0,0.00017482,2]
[342216332,1731589847356,-500.0,0.00017482,2]
[342216333,1731589847366,-500.0,0.00017482,2]
[342216334,1731589847375,-500.0,0.00017482,2]
[342216335,1731589847384,-500.0,0.00017482,2]
[342216336,1731589847392,-500.0,0.00017482,2]
[342216337,1731589847401,-201.56600378,0.00017482,2]
[342216338,1731589847410,-500.0,0.00017482,2]
[342216339,1731589847419,-874.45,0.00017482,2]
[342216340,1731589847428,-500.0,0.00017482,2]
[342216341,1731589847437,-574.93,0.00017482,2]
[342216342,1731589847445,-500.0,0.00017482,2]
[342216343,1731589847455,-609.87,0.00017482,2]
[342216344,1731589847464,-500.0,0.00017482,2]
[342216345,1731589847473,-219.59812404,0.00017482,2]
[342216346,1731589847483,-500.0,0.00017482,2]
[342216347,1731589847491,-500.0,0.00017482,2]
[342216348,1731589847500,-537.31,0.00017482,2]
[342216349,1731589847510,-532.15,0.00017482,2]
[342216350,1731589847519,-500.0,0.00017482,2]
[342216351,1731589847528,-500.0,0.00017482,2]
[342216352,1731589847537,-500.0,0.00017482,2]
[342216353,1731589847546,-500.0,0.00017482,2]
[342216354,1731589847555,-623.19,0.00017482,2]
[342216355,1731589847565,-500.0,0.00017482,2]
[342216356,1731589847574,-534.87387436,0.00017482,2]
[342216357,1731589847583,-500.0,0.00017482,2]
[342216358,1731589847592,-736.9,0.00017482,2]
[342216359,1731589847601,-500.0,0.00017482,2]
[342216360,1731589847610,-500.0,0.00017482,2]
[342216361,1731589847619,-500.0,0.00017482,2]
[342216362,1731589847629,-378.66212956,0.00017482,2]
[342216363,1731589847640,-356.67538069,0.00017482,2]
[342216364,1731589847650,-500.0,0.00017482,2]
[342216365,1731589847657,-500.0,0.00017482,2]
[342216366,1731589847663,-500.0,0.00017482,2]
[342216367,1731589847670,-500.0,0.00017482,2]
[342216368,1731589847676,-504.22219023,0.00017482,2]
[342216369,1731589847683,-743.09,0.00017482,2]
[342216370,1731589847690,-500.0,0.00017482,2]
[342216371,1731589847699,-500.0,0.00017482,2]
[342216372,1731589847707,-500.0,0.00017482,2]
[342216373,1731589847716,-500.0,0.00017482,2]
[342216374,1731589847726,-814.86,0.00017482,2]
[342216375,1731589847735,-622.45,0.00017482,2]
[342216376,1731589847743,-500.0,0.00017482,2]
[342216377,1731589847753,-1215.71,0.00017482,2]
[342216378,1731589847762,-696.04,0.00017482,2]
[342216379,1731589847771,-517.94918106,0.00017482,2]
[342216380,1731589847781,-500.0,0.00017482,2]
[342216381,1731589847790,-500.0,0.00017482,2]
[342216382,1731589847799,-500.0,0.00017482,2]
[342216383,1731589847808,-500.0,0.00017482,2]
[342216384,1731589847818,-500.0,0.00017482,2]
[342216385,1731589847827,-500.0,0.00017482,2]
[342216386,1731589847835,-500.0,0.00017482,2]
[342216387,1731589847844,-743.69,0.00017482,2]
[342216388,1731589847853,-500.0,0.00017482,2]
[342216389,1731589847863,-500.0,0.00017482,2]
[342216390,1731589847872,-500.0,0.00017482,2]
[342216391,1731589847881,-500.0,0.00017482,2]
[342216392,1731589847890,-690.4,0.00017482,2]
[342216393,1731589847899,-500.0,0.00017482,2]
[342216394,1731589847909,-182.03736068,0.00017482,2]
[342216395,1731589847918,-625.42045839,0.00017482,2]
[342216396,1731589847927,-500.0,0.00017482,2]
[342216397,1731589847936,-500.0,0.00017482,2]
[342216398,1731589847945,-500.0,0.00017482,2]
[342216399,1731589847955,-500.0,0.00017482,2]
[342216400,1731589847963,-500.0,0.00017482,2]
[342216401,1731589847972,-837.65,0.00017482,2]
[342216402,1731589847982,-500.0,0.00017482,2]
[342216403,1731589847991,-500.0,0.00017482,2]
[342216404,1731589848000,-500.0,0.00017482,2]
[342216405,1731589848009,-500.0,0.00017482,2]
[342216406,1731589848019,-500.0,0.00017482,2]
[342216407,1731589848029,-2018.25,0.00017482,2]
[342216408,1731589848038,-528.99,0.00017482,2]
[342216409,1731589848048,-325.06644976,0.00017482,2]
[342216410,1731589848057,-500.0,0.00017482,2]
[342216411,1731589848067,-500.0,0.00017482,2]
[342216412,1731589848077,-500.0,0.00017482,2]
[342216413,1731589848086,-273.56318083,0.00017482,2]
[342216414,1731589848095,-725.83,0.00017482,2]
[342216415,1731589848104,-500.0,0.00017482,2]
[342216416,1731589848116,-547.80297096,0.00017482,2]
[342216417,1731589848130,-500.0,0.00017482,2]
[342216418,1731589848146,-500.0,0.00017482,2]
[342216419,1731589848159,-500.0,0.00017482,2]
[342216420,1731589848173,-811.83,0.00017482,2]
[342216421,1731589848186,-227.886113,0.00017482,2]
[342216422,1731589848197,-500.0,0.00017482,2]
[342216423,1731589848211,-500.0,0.00017482,2]
[342216424,1731589848225,-500.0,0.00017482,2]
[342216425,1731589848238,-500.0,0.00017482,2]
[342216426,1731589848252,-500.0,0.00017482,2]
[342216427,1731589848265,-1069.36,0.00017482,2]
[342216428,1731589848279,-500.0,0.00017482,2]
[342216429,1731589848292,-500.0,0.00017482,2]
[342216430,1731589848314,-505.64140249,0.00017482,2]
[342216431,1731589848338,-483.19260441,0.00017482,2]
[342216432,1731589848363,-500.0,0.00017482,2]
[342216433,1731589848378,-500.0,0.00017482,2]
[342216434,1731589848389,-1024.05,0.00017482,2]
[342216435,1731589848400,-500.0,0.00017482,2]
[342216436,1731589848412,-500.0,0.00017482,2]
[342216437,1731589848425,-500.0,0.00017482,2]
[342216438,1731589848436,-500.0,0.00017482,2]